bitfinex-derivatives/quotes_BTCF0:USTF0_20250915
["timestamp","ask_amount","ask_price","bid_price","bid_amount"]
[1757945080460,0.03605,114610.0,114600.0,0.361]
[1757945080662,0.46460237,114610.0,114600.0,0.38264]
[1757945081066,0.48691919,114610.0,114600.0,0.38264]
[1757945081262,0.46460237,114610.0,114600.0,0.38264]
[1757945081767,0.53366475,114610.0,114600.0,0.38264]
[1757945082558,0.03605,114600.0,114590.0,0.02078904]
[1757945082867,0.73691303,114600.0,114590.0,0.02058904]
[1757945083762,0.04045,114590.0,114550.0,0.37472]
[1757945083962,0.46460237,114560.0,114550.0,0.38264]
[1757945084168,0.03605,114550.0,114540.0,0.38264]
[1757945085970,0.46460237,114550.0,114540.0,0.38264]
[1757945086374,0.03505,114550.0,114540.0,0.38264]
[1757945087071,0.03305,114550.0,114540.0,0.38464]
[1757945087268,0.02259,114550.0,114540.0,0.41934904]
[1757945087466,0.0001,114560.0,114550.0,0.03576]
[1757945087666,0.84493,114570.0,114560.0,0.03576]
[1757945087867,0.82224,114570.0,114560.0,0.41734904]
[1757945088272,0.02259,114570.0,114560.0,0.41734904]
[1757945088869,0.03605,114570.0,114560.0,0.41734904]
[1757945089172,0.03605,114570.0,114560.0,0.40342904]
[1757945089374,0.46460237,114570.0,114560.0,0.38264]
[1757945090173,0.46560237,114570.0,114560.0,0.38264]
[1757945090867,0.53479355,114570.0,114560.0,0.40342904]
[1757945091073,0.53479355,114570.0,114560.0,0.41734904]
[1757945091273,0.53579355,114570.0,114560.0,0.41734904]
[1757945091574,0.53579355,114570.0,114560.0,0.40342904]
[1757945092471,0.07119118,114570.0,114560.0,0.41734904]
[1757945092772,0.09378118,114570.0,114560.0,0.39656]
[1757945092969,0.09378118,114570.0,114560.0,0.41734904]
[1757945094071,0.002,114570.0,114560.0,0.66734904]
[1757945094465,0.0001,114580.0,114560.0,0.66734904]
[1757945094671,0.94450351,114590.0,114580.0,0.02143]
[1757945094871,0.94440351,114590.0,114580.0,0.40301904]
[1757945095265,1.33692588,114590.0,114580.0,0.41588904]
[1757945095471,0.01793505,114590.0,114580.0,0.66588904]
[1757945097375,0.01993505,114590.0,114580.0,0.66588904]
[1757945097573,0.002,114590.0,114580.0,0.66588904]
[1757945097778,0.002,114590.0,114580.0,1.22598387]
[1757945097978,0.002,114590.0,114580.0,1.50838627]
[1757945098180,0.002,114590.0,114580.0,0.68610627]
[1757945098376,0.002,114590.0,114580.0,1.50838627]
[1757945098678,0.004,114590.0,114580.0,1.50838627]
[1757945101277,0.5799576,114590.0,114580.0,0.42323627]
[1757945101470,0.8299576,114590.0,114580.0,0.38223]
[1757945101677,0.03608,114580.0,114570.0,0.3609]
[1757945101876,0.5759576,114580.0,114570.0,0.3608]
[1757945102182,0.84882343,114580.0,114570.0,0.3608]
[1757945102475,1.67106343,114580.0,114570.0,0.3608]
[1757945103176,1.42106343,114580.0,114570.0,0.3608]
[1757945103380,0.59882343,114580.0,114570.0,0.38239]
[1757945103879,1.42206343,114580.0,114570.0,0.38239]
[1757945104077,0.59982343,114580.0,114570.0,0.38239]
[1757945104380,0.60082343,114580.0,114570.0,0.38239]
[1757945104581,0.04779583,114580.0,114570.0,0.41697904]
[1757945104772,0.02493,114580.0,114570.0,0.95685664]
[1757945104974,0.002,114580.0,114570.0,0.66697904]
[1757945105172,0.002,114580.0,114570.0,1.20685664]
[1757945106376,0.0002,114590.0,114580.0,0.0138]
[1757945106578,0.0001,114590.0,114580.0,1.77909664]
[1757945106777,0.0001,114590.0,114580.0,2.02909664]
[1757945107376,0.5629076,114590.0,114580.0,0.41697904]
[1757945107586,0.59893434,114590.0,114580.0,0.40317904]
[1757945107777,0.60093434,114590.0,114580.0,0.40317904]
[1757945108476,0.60293434,114590.0,114580.0,0.40317904]
[1757945108776,0.85293434,114590.0,114580.0,0.3608]
[1757945109480,0.85293434,114590.0,114580.0,0.38239]
[1757945110380,0.85293434,114590.0,114580.0,0.3608]
[1757945110891,0.03608,114580.0,114570.0,0.361]
[1757945111180,0.05895674,114580.0,114570.0,0.3608]
[1757945111376,0.01315,114570.0,114560.0,0.361]
[1757945111579,0.03608,114560.0,114550.0,0.38136216]
[1757945111778,0.59887271,114560.0,114550.0,0.4235412]
[1757945112079,1.74073059,114560.0,114550.0,0.3608]
[1757945112287,1.74073059,114560.0,114540.0,0.3748]
[1757945112288,0.03608,114550.0,114540.0,0.361]
[1757945112587,0.59787271,114550.0,114540.0,0.3608]
[1757945113587,0.04584511,114550.0,114540.0,0.41797904]
[1757945113788,0.05899511,114550.0,114540.0,0.40417904]
[1757945113991,0.59887271,114550.0,114540.0,0.38339]
[1757945114285,0.59687271,114550.0,114540.0,0.001]
[1757945114478,0.59687271,114550.0,114540.0,0.3618]
[1757945114882,0.05699511,114550.0,114540.0,0.3618]
[1757945115182,0.59687271,114550.0,114540.0,0.3618]
[1757945115379,0.59687271,114550.0,114540.0,0.3638]
[1757945115582,0.59687271,114550.0,114540.0,0.40617904]
[1757945115888,0.04384511,114550.0,114540.0,0.41997904]
[1757945116376,0.59687271,114550.0,114540.0,0.41997904]
[1757945117682,0.59687271,114550.0,114540.0,0.40617904]
[1757945117985,0.71453546,114550.0,114540.0,0.003]
[1757945118183,2.61657066,114550.0,114540.0,0.003]
[1757945118775,1.79429066,114550.0,114540.0,0.003]
[1757945118984,2.61757066,114550.0,114540.0,0.001]
[1757945119186,0.03608,114540.0,114530.0,0.0002]
[1757945119486,0.03608,114530.0,114520.0,0.38259]
[1757945119679,1.42119271,114530.0,114520.0,0.38239]
[1757945119878,0.59887271,114530.0,114520.0,0.38239]
[1757945120082,1.42119271,114530.0,114520.0,0.38239]
[1757945120577,0.04584511,114530.0,114520.0,0.40317904]
[1757945120779,0.04584511,114530.0,114520.0,0.41697904]
[1757945121386,0.04584511,114530.0,114520.0,0.41797904]
[1757945121684,0.05899511,114530.0,114520.0,0.41797904]
[1757945122085,1.42123271,114530.0,114520.0,0.41797904]
[1757945122591,1.40812271,114530.0,114520.0,0.41897904]
[1757945122779,0.84531511,114530.0,114520.0,0.39819]
[1757945122976,0.02291511,114530.0,114520.0,1.20885664]
[1757945123181,0.0001,114540.0,114530.0,0.0138]
[1757945123483,0.02284319,114540.0,114530.0,0.41697904]
[1757945124078,1.39309994,114550.0,114530.0,0.41697904]
[1757945124285,1.43876134,114550.0,114540.0,0.04237904]
[1757945124491,1.43876134,114550.0,114540.0,0.02159]
[1757945124688,1.79956134,114550.0,114530.0,0.3748]
[1757945124985,1.79956134,114550.0,114540.0,0.02078904]
[1757945124986,1.25968374,114550.0,114540.0,0.02078904]
[1757945125477,0.03608,114540.0,114530.0,0.38259]
[1757945125680,0.0589114,114540.0,114530.0,0.38239]
[1757945125882,0.0589114,114540.0,114530.0,0.40317904]
[1757945126088,1.3983976,114540.0,114530.0,0.40317904]
[1757945126287,1.42122301,114540.0,114530.0,0.40317904]
[1757945126486,0.5628076,114540.0,114530.0,0.41707904]
[1757945126787,1.3979976,114540.0,114530.0,0.41707904]
[1757945126989,1.3979976,114540.0,114530.0,0.40317904]
[1757945127185,1.3979976,114540.0,114530.0,0.38239]
[1757945127386,1.3979976,114540.0,114520.0,0.3748]
[1757945127387,0.03462,114530.0,114520.0,0.361]
[1757945127595,0.03462,114520.0,114510.0,0.41826663]
[1757945127888,0.85706,114520.0,114510.0,0.41806663]
[1757945128092,0.85706,114520.0,114510.0,0.43885567]
[1757945128287,0.84431,114520.0,114510.0,0.43885567]
[1757945128587,0.06969617,114520.0,114510.0,0.43885567]
[1757945128791,1.3751676,114530.0,114510.0,0.43885567]
[1757945128983,1.3969376,114530.0,114520.0,0.04363904]
[1757945129489,0.85706,114530.0,114520.0,0.03675]
[1757945129690,1.3969376,114530.0,114520.0,0.05753904]
[1757945129888,0.84435,114530.0,114520.0,0.05853904]
[1757945130187,0.02187,114530.0,114520.0,0.05853904]
[1757945130493,1.3752076,114540.0,114520.0,0.41933904]
[1757945130693,1.41980836,114540.0,114530.0,0.04363904]
[1757945131196,1.41980836,114540.0,114520.0,0.38485]
[1757945131197,0.03462,114530.0,114520.0,0.38485]
[1757945131385,0.59733403,114530.0,114520.0,0.40543904]
[1757945132486,0.59733403,114530.0,114520.0,0.40443904]
[1757945132789,0.04470643,114530.0,114520.0,0.41933904]
[1757945132990,1.40706403,114530.0,114520.0,0.41933904]
[1757945133190,0.58458403,114530.0,114520.0,0.41933904]
[1757945133386,1.40706403,114530.0,114520.0,0.41933904]
[1757945133585,0.58458403,114530.0,114520.0,0.41933904]
[1757945133787,1.40706403,114530.0,114520.0,0.41933904]
[1757945133984,1.41981403,114530.0,114520.0,0.41933904]
[1757945134492,0.59733403,114530.0,114520.0,0.41933904]
[1757945134691,1.41981403,114530.0,114520.0,0.41933904]
[1757945135594,1.40710403,114530.0,114520.0,0.41933904]
[1757945135893,0.84531643,114530.0,114520.0,0.41833904]
[1757945136095,0.84531643,114530.0,114520.0,0.66833904]
[1757945136289,0.02283643,114530.0,114520.0,0.66833904]
[1757945137092,0.04470643,114530.0,114520.0,0.66833904]
[1757945137294,0.04570643,114530.0,114520.0,0.66833904]
[1757945138192,0.02383643,114530.0,114520.0,0.66833904]
[1757945138391,0.02383643,114530.0,114520.0,1.20821664]
[1757945138589,0.001,114530.0,114520.0,1.20821664]
[1757945138790,0.001,114530.0,114520.0,0.66833904]
[1757945139397,0.001,114530.0,114520.0,0.41833904]
[1757945140292,0.02287,114530.0,114520.0,0.41833904]
[1757945140497,0.5627476,114530.0,114520.0,0.41833904]
[1757945140700,0.56346595,114530.0,114520.0,0.41833904]
[1757945140891,0.02358835,114530.0,114520.0,0.41833904]
[1757945141688,0.02358835,114530.0,114520.0,0.66833904]
[1757945141997,0.001,114530.0,114520.0,1.20821664]
[1757945142593,0.001,114530.0,114520.0,2.03069664]
[1757945142900,0.001,114530.0,114520.0,1.20821664]
[1757945143104,0.001,114530.0,114520.0,2.03077664]
[1757945143396,0.001,114530.0,114520.0,0.66833904]
[1757945148505,0.59812035,114530.0,114520.0,0.41833904]
[1757945148696,0.58537035,114530.0,114520.0,0.41833904]
[1757945149002,0.02362275,114530.0,114520.0,0.41833904]
[1757945149299,0.05824275,114530.0,114520.0,0.41833904]
[1757945149504,0.59812035,114530.0,114520.0,0.40443904]
[1757945149698,1.67168035,114530.0,114520.0,0.38365]
[1757945151400,0.30824275,114530.0,114520.0,0.39755]
[1757945151611,1.13196275,114530.0,114520.0,0.39755]
[1757945151905,1.67184035,114530.0,114520.0,0.39755]
[1757945152304,0.84812035,114530.0,114520.0,0.39755]
[1757945152607,0.29549275,114530.0,114520.0,0.39755]
[1757945152804,1.66361035,114530.0,114520.0,0.39755]
[1757945153405,0.58537035,114530.0,114520.0,0.41833904]
[1757945153604,0.02362275,114530.0,114520.0,0.41833904]
[1757945154407,0.02562275,114530.0,114520.0,0.41833904]
[1757945155001,0.02762275,114530.0,114520.0,0.41833904]
[1757945155606,0.005,114530.0,114520.0,1.20821664]
[1757945157906,0.005,114530.0,114520.0,1.92598344]
[1757945158106,0.005,114530.0,114520.0,1.92594344]
[1757945158701,0.005,114530.0,114520.0,1.49633904]
[1757945159804,0.005,114530.0,114520.0,1.92574344]
[1757945161405,0.005,114530.0,114520.0,0.41833904]
[1757945161709,0.02624,114530.0,114520.0,0.41833904]
[1757945162305,0.005,114530.0,114520.0,0.41833904]
[1757945164005,0.005,114530.0,114520.0,1.09774344]
[1757945164203,0.0001,114540.0,114530.0,0.03637]
[1757945164508,0.02134,114550.0,114540.0,0.03637]
[1757945164709,0.4642044,114550.0,114540.0,0.39717]
[1757945164904,0.48669456,114550.0,114540.0,0.38407]
[1757945165710,0.49169456,114550.0,114540.0,0.38407]
[1757945165913,0.0348,114540.0,114530.0,0.38427]
[1757945166210,0.0348,114540.0,114530.0,0.38407]
[1757945166211,0.48669456,114540.0,114530.0,0.38407]
[1757945166513,0.05729016,114540.0,114530.0,0.38407]
[1757945166914,0.48669456,114540.0,114530.0,0.38407]
[1757945167913,0.04373016,114540.0,114530.0,0.41795904]
[1757945168502,0.04473016,114540.0,114530.0,0.41795904]
[1757945169112,0.04573016,114540.0,114530.0,0.41795904]
[1757945169309,0.05929016,114540.0,114530.0,0.41795904]
[1757945169616,0.05929016,114540.0,114530.0,0.40485904]
[1757945169819,0.73869456,114540.0,114530.0,0.38407]
[1757945171108,0.73869456,114540.0,114530.0,0.39717]
[1757945171614,0.04573016,114540.0,114530.0,0.39717]
[1757945171810,0.05929016,114540.0,114530.0,0.39717]
[1757945172015,0.0348,114530.0,114520.0,0.361]
[1757945172217,1.31421456,114530.0,114520.0,0.3608]
[1757945173212,0.73769456,114530.0,114510.0,0.361]
[1757945173416,0.0348,114520.0,114510.0,0.38417]
[1757945173607,0.0348,114520.0,114510.0,0.38407]
[1757945173807,0.02124,114520.0,114510.0,0.41795904]
[1757945175019,0.4430644,114530.0,114510.0,0.41795904]
[1757945175215,0.05828041,114530.0,114520.0,0.39717]
[1757945175424,0.04472041,114530.0,114520.0,0.39717]
[1757945175620,0.001,114530.0,114520.0,0.41795904]
[1757945175916,0.001,114530.0,114520.0,1.09736344]
[1757945176117,0.01757147,114540.0,114530.0,0.0131]
[1757945176414,0.01747147,114540.0,114530.0,0.41795904]
[1757945177923,0.03871147,114540.0,114530.0,0.41795904]
[1757945178520,0.01747147,114540.0,114530.0,0.41795904]
[1757945178721,0.01947147,114540.0,114530.0,0.41795904]
[1757945179118,0.02147147,114540.0,114530.0,0.41795904]
[1757945179318,0.004,114540.0,114530.0,1.09736344]
[1757945179519,0.0001,114550.0,114540.0,0.03637]
[1757945179828,0.0001,114560.0,114550.0,0.03637]
[1757945180013,0.0001,114570.0,114560.0,0.05715904]
[1757945180219,0.46077575,114580.0,114560.0,0.41795904]
[1757945180524,0.06253766,114580.0,114560.0,0.39727]
[1757945180715,0.49194206,114580.0,114560.0,0.39727]
[1757945181226,0.06253766,114580.0,114560.0,0.41805904]
[1757945181423,0.12324766,114580.0,114570.0,0.39717]
[1757945181725,0.8039644,114590.0,114580.0,0.03637]
[1757945181726,0.0002,114590.0,114580.0,0.03637]
[1757945181922,0.0001,114590.0,114580.0,0.41795904]
[1757945182829,0.02134,114590.0,114580.0,0.39717]
[1757945183128,0.02634,114590.0,114580.0,0.41795904]
[1757945183521,0.01356,114580.0,114570.0,0.3741]
[1757945183718,0.4642044,114580.0,114570.0,0.40485904]
[1757945183922,0.4642044,114580.0,114570.0,0.41795904]
[1757945183923,0.02124,114580.0,114570.0,0.41795904]
[1757945184826,0.4642044,114580.0,114570.0,0.40485904]
[1757945185123,0.01356,114570.0,114560.0,0.361]
[1757945185325,0.4642044,114570.0,114560.0,0.38407]
[1757945185626,0.01366,114580.0,114560.0,0.39717]
[1757945185824,0.04363673,114580.0,114570.0,0.39726]
[1757945186022,0.004,114580.0,114570.0,0.41804904]
[1757945186330,0.007,114580.0,114570.0,0.41804904]
[1757945186522,0.05171445,114580.0,114570.0,0.41804904]
[1757945186722,0.49451885,114580.0,114570.0,0.38371]
[1757945187023,0.49051885,114580.0,114570.0,0.39726]
[1757945187330,0.06111445,114580.0,114570.0,0.39726]
[1757945187523,0.47711885,114580.0,114570.0,0.39726]
[1757945187724,0.49051885,114580.0,114570.0,0.38371]
[1757945188826,0.48111885,114580.0,114570.0,0.39726]
[1757945189031,0.007,114580.0,114570.0,0.41804904]
[1757945189230,0.007,114580.0,114570.0,0.66804904]
[1757945189423,0.007,114580.0,114570.0,1.92489344]
[1757945189729,0.0002,114590.0,114580.0,0.03646]
[1757945189933,0.0001,114590.0,114580.0,0.41804904]
[1757945190134,0.02242,114590.0,114580.0,0.41804904]
[1757945190439,0.03572,114580.0,114570.0,0.02311]
[1757945190620,0.4651244,114580.0,114570.0,0.02291]
[1757945190930,0.73750289,114580.0,114570.0,0.02291]
[1757945191732,0.73750289,114580.0,114560.0,0.3741]
[1757945192031,0.05809849,114580.0,114570.0,0.02291]
[1757945192633,0.04469849,114580.0,114570.0,0.03646]
[1757945192930,0.04469849,114580.0,114570.0,0.05724904]
[1757945193132,0.04469849,114580.0,114570.0,0.05824904]
[1757945193727,0.02237849,114580.0,114570.0,0.05824904]
[1757945193929,0.06973495,114590.0,114570.0,0.41904904]
[1757945194130,0.11433192,114590.0,114580.0,0.41804904]
[1757945194336,0.09195495,114590.0,114580.0,0.41804904]
[1757945194530,0.06963495,114590.0,114580.0,0.41804904]
[1757945195235,0.0001,114590.0,114580.0,0.41804904]
[1757945195931,0.0001,114590.0,114580.0,1.92409344]
[1757945196527,0.0001,114590.0,114580.0,1.09745344]
[1757945196725,0.02342,114590.0,114580.0,0.41804904]
[1757945196931,0.03682,114590.0,114580.0,0.40449904]
[1757945197436,0.02342,114590.0,114580.0,0.40449904]
[1757945197639,0.02242,114590.0,114580.0,0.41804904]
[1757945198038,0.03582,114590.0,114580.0,0.40449904]
[1757945198441,0.02242,114590.0,114580.0,0.41804904]
[1757945199935,0.0001,114590.0,114580.0,0.41804904]
[1757945200136,0.0001,114590.0,114580.0,0.66804904]
[1757945200939,0.0001,114590.0,114580.0,1.49540904]
[1757945201539,0.0001,114590.0,114580.0,1.49640904]
[1757945201938,0.4652244,114590.0,114580.0,0.04469904]
[1757945202140,1.0984075,114590.0,114580.0,0.001]
[1757945202830,0.3082031,114590.0,114580.0,0.001]
[1757945203034,0.7376075,114590.0,114580.0,0.001]
[1757945203840,1.0984075,114590.0,114580.0,0.001]
[1757945205146,1.0760244,114590.0,114580.0,0.001]
[1757945205442,1.12950828,114590.0,114580.0,0.001]
[1757945206642,1.12950828,114590.0,114580.0,0.02391]
[1757945206940,1.12950828,114590.0,114580.0,0.001]
[1757945207141,1.17624863,114590.0,114580.0,0.001]
[1757945208244,1.14519277,114590.0,114580.0,0.001]
[1757945210742,1.14519277,114590.0,114570.0,0.0002]
[1757945210743,0.03572,114580.0,114570.0,0.0002]
[1757945210946,0.03572,114570.0,114560.0,0.361]
[1757945211144,0.05814802,114570.0,114560.0,0.38158904]
[1757945211341,1.31447242,114570.0,114560.0,0.02078904]
[1757945212243,1.31447242,114570.0,114560.0,0.02378904]
[1757945212849,1.31447242,114570.0,114560.0,0.003]
[1757945213038,0.48755242,114570.0,114560.0,0.02378904]
[1757945213237,1.31439242,114570.0,114560.0,0.04679904]
[1757945213440,1.31439242,114570.0,114560.0,0.02378904]
[1757945213948,1.31339242,114570.0,114560.0,0.02378904]
[1757945214146,1.31339242,114570.0,114560.0,0.04679904]
[1757945214643,1.31339242,114570.0,114560.0,0.04879904]
[1757945214847,1.31339242,114570.0,114560.0,0.05128371]
[1757945215847,1.31263242,114570.0,114560.0,0.05128371]
[1757945216049,0.48655242,114570.0,114560.0,0.05128371]
[1757945216543,0.87006802,114570.0,114560.0,0.06495371]
[1757945216948,0.86994802,114570.0,114560.0,0.06495371]
[1757945217151,0.88364802,114570.0,114560.0,0.06495371]
[1757945217448,1.31305242,114570.0,114560.0,0.05128371]
[1757945217650,0.88364802,114570.0,114560.0,0.05128371]
[1757945217845,1.29991242,114570.0,114560.0,0.06495371]
[1757945218147,0.04474802,114570.0,114560.0,0.06495371]
[1757945218350,0.87022802,114570.0,114560.0,0.06495371]
[1757945218939,0.04474802,114570.0,114560.0,0.06495371]
[1757945219145,0.87030802,114570.0,114560.0,0.42575371]
[1757945219343,0.87022802,114570.0,114560.0,0.42575371]
[1757945219845,1.41050857,114570.0,114560.0,0.42575371]
[1757945220249,0.58502857,114570.0,114560.0,0.42575371]
[1757945220443,0.02242802,114570.0,114560.0,1.21603426]
[1757945220945,0.8436721,114580.0,114570.0,0.03635]
[1757945220946,0.0177521,114580.0,114570.0,0.03635]
[1757945221153,0.0176521,114580.0,114570.0,0.05713904]
[1757945221347,0.60355747,114580.0,114570.0,0.05713904]
[1757945221547,0.03995692,114580.0,114570.0,0.05713904]
[1757945221753,0.03995692,114580.0,114570.0,0.41793904]
[1757945221942,0.03995692,114580.0,114570.0,0.42042371]
[1757945222148,0.58023747,114580.0,114570.0,0.42042371]
[1757945222450,0.60355747,114580.0,114570.0,0.42342371]
[1757945223047,0.61725747,114580.0,114570.0,0.40975371]
[1757945224147,0.03995692,114580.0,114570.0,0.42342371]
[1757945224755,0.06327692,114580.0,114570.0,0.42342371]
[1757945225848,0.60355747,114580.0,114570.0,0.42342371]
[1757945228051,0.06327692,114580.0,114570.0,0.42342371]
[1757945228750,0.60355747,114580.0,114570.0,0.42342371]
[1757945229555,0.61725747,114580.0,114570.0,0.42342371]
[1757945230751,0.61725747,114580.0,114570.0,0.04895371]
[1757945231553,0.86725747,114580.0,114570.0,0.00548467]
[1757945231748,1.36450985,114580.0,114570.0,0.00548467]
[1757945231948,1.01866554,114580.0,114570.0,0.00548467]
[1757945232152,1.01866554,114580.0,114570.0,0.02816467]
[1757945232455,1.59318554,114580.0,114570.0,0.06262371]
[1757945232648,1.59318554,114580.0,114570.0,0.42342371]
[1757945233056,1.95398554,114580.0,114570.0,0.04895371]
[1757945233348,2.58099827,114580.0,114570.0,0.00548467]
[1757945233746,2.58099827,114580.0,114560.0,0.0002]
[1757945233951,1.46652135,114570.0,114560.0,0.0001]
[1757945234254,0.03702,114560.0,114550.0,0.0002]
[1757945234555,0.03702,114550.0,114540.0,0.02288]
[1757945234857,0.40516913,114550.0,114540.0,0.02268]
[1757945235055,0.40016913,114550.0,114540.0,0.04346904]
[1757945235653,0.40016913,114550.0,114540.0,0.04746904]
[1757945235853,0.59483062,114550.0,114540.0,0.04746904]
[1757945236052,0.59483062,114550.0,114540.0,0.04946904]
[1757945236460,0.60338962,114550.0,114540.0,0.04946904]
[1757945237661,0.671483,114550.0,114540.0,0.04946904]
[1757945239051,0.1309772,114550.0,114540.0,0.04946904]
[1757945239363,1.8227888,114550.0,114540.0,0.006]
[1757945239559,1.282283,114550.0,114540.0,0.006]
[1757945239962,1.8227888,114550.0,114540.0,0.006]
[1757945240560,1.85395722,114550.0,114540.0,0.006]
[1757945241161,1.8227888,114550.0,114540.0,0.002]
[1757945241762,2.109243,114550.0,114540.0,0.001]
[1757945241964,2.6517488,114550.0,114540.0,0.001]
[1757945242466,0.03702,114540.0,114530.0,0.08104]
[1757945242668,0.96063062,114540.0,114530.0,0.08084]
[1757945242868,0.03702,114530.0,114520.0,0.38368]
[1757945243067,1.42659062,114530.0,114520.0,0.38348]
[1757945243366,1.42659062,114530.0,114520.0,0.40426904]
[1757945243569,0.59983062,114530.0,114520.0,0.40426904]
[1757945243866,1.42639062,114530.0,114520.0,0.40426904]
[1757945244061,0.5775258,114530.0,114520.0,0.40426904]
[1757945244260,1.4040858,114530.0,114520.0,0.40426904]
[1757945244465,1.4040858,114530.0,114520.0,0.40526904]
[1757945245961,0.5775258,114530.0,114520.0,0.40626904]
[1757945246169,1.4037258,114530.0,114520.0,0.40626904]
[1757945246669,1.4036458,114530.0,114520.0,0.40626904]
[1757945247862,0.5775258,114530.0,114520.0,0.40626904]
[1757945248064,1.4033258,114530.0,114520.0,0.40626904]
[1757945248869,0.5775258,114530.0,114520.0,0.40626904]
[1757945249069,1.4032058,114530.0,114520.0,0.40626904]
[1757945250668,0.5775258,114530.0,114520.0,0.40626904]
[1757945250868,1.4032458,114530.0,114520.0,0.40626904]
[1757945251068,0.5775258,114530.0,114520.0,0.41949904]
[1757945251265,1.4025658,114530.0,114520.0,0.41949904]
[1757945251657,0.86206,114530.0,114520.0,0.41949904]
[1757945251858,1.4025658,114530.0,114520.0,0.41949904]
[1757945252965,0.0138,114540.0,114530.0,0.01323]
[1757945252966,0.0001,114540.0,114530.0,0.01323]
[1757945253173,0.02141,114540.0,114530.0,0.41781904]
[1757945253470,0.5747558,114540.0,114530.0,0.40458904]
[1757945253667,0.59673204,114540.0,114530.0,0.02078904]
[1757945253868,0.95753204,114540.0,114530.0,0.02078904]
[1757945254067,0.95753204,114540.0,114530.0,0.04378904]
[1757945254269,0.59673204,114540.0,114530.0,0.04378904]
[1757945254574,1.42281204,114540.0,114530.0,0.05701904]
[1757945254962,0.86842624,114540.0,114530.0,0.30701904]
[1757945255266,0.04639411,114540.0,114530.0,0.30701904]
[1757945255470,0.003,114540.0,114530.0,0.30701904]
[1757945255669,0.003,114540.0,114530.0,0.66781904]
[1757945255670,0.005,114540.0,114530.0,0.66781904]
[1757945255859,0.005,114540.0,114530.0,1.01368793]
[1757945256060,0.005,114540.0,114530.0,1.35955682]
[1757945256474,0.005,114540.0,114530.0,1.01368793]
[1757945256969,0.0001,114550.0,114540.0,0.03623]
[1757945257166,1.19759316,114560.0,114550.0,0.03623]
[1757945257369,0.37273316,114560.0,114550.0,1.00868793]
[1757945257574,0.39473152,114560.0,114550.0,1.00868793]
[1757945258374,0.39873688,114560.0,114550.0,1.00868793]
[1757945258562,0.37873316,114560.0,114550.0,1.00868793]
[1757945258769,0.05427427,114560.0,114550.0,1.00868793]
[1757945258969,0.81715675,114560.0,114550.0,1.00868793]
[1757945259275,0.81715675,114560.0,114550.0,0.75868793]
[1757945259276,0.74601205,114560.0,114550.0,0.75868793]
[1757945259666,0.74601205,114560.0,114550.0,0.41281904]
[1757945259868,0.74601205,114560.0,114550.0,0.75868793]
[1757945261476,0.40014316,114560.0,114550.0,0.75868793]
[1757945262564,0.39814316,114560.0,114550.0,0.75868793]
[1757945263279,0.39814316,114560.0,114550.0,0.41281904]
[1757945263671,0.39814316,114560.0,114550.0,0.75868793]
[1757945263875,0.4666773,114560.0,114550.0,0.75868793]
[1757945264277,0.12080841,114560.0,114550.0,0.75868793]
[1757945264574,0.4646773,114560.0,114550.0,0.75868793]
[1757945265675,0.11680841,114560.0,114550.0,0.75868793]
[1757945265880,0.4626773,114560.0,114550.0,0.75868793]
[1757945268478,0.11680841,114560.0,114550.0,0.75868793]
[1757945268680,0.4626773,114560.0,114550.0,0.75868793]
[1757945268982,0.09539841,114560.0,114550.0,0.75868793]
[1757945269172,0.0865077,114560.0,114550.0,1.00868793]
[1757945269982,0.0865077,114560.0,114550.0,1.83236793]
[1757945270375,0.0001,114570.0,114560.0,0.01323]
[1757945270680,0.37374,114590.0,114570.0,0.03623]
[1757945270681,0.0001,114580.0,114570.0,0.03623]
[1757945270977,0.73514996,114580.0,114570.0,0.39703]
[1757945271185,0.74798996,114580.0,114570.0,0.41281904]
[1757945271483,0.816882,114580.0,114570.0,0.75868793]
[1757945271779,0.11230422,114580.0,114570.0,0.75868793]
[1757945271985,0.807042,114580.0,114570.0,0.75868793]
[1757945272479,0.46117311,114580.0,114570.0,0.75868793]
[1757945272784,0.46117311,114580.0,114570.0,0.74289889]
[1757945272987,0.46117311,114580.0,114570.0,0.75868793]
[1757945273284,0.47176004,114580.0,114570.0,0.75868793]
[1757945275080,0.12589115,114580.0,114570.0,0.75868793]
[1757945275284,0.47176004,114580.0,114570.0,0.75868793]
[1757945275778,0.005,114580.0,114570.0,1.35455682]
[1757945279385,0.005,114580.0,114570.0,1.92807682]
[1757945279786,0.005,114580.0,114570.0,1.92747326]
[1757945280196,0.005,114580.0,114570.0,1.10395326]
[1757945280388,0.005,114580.0,114570.0,1.92743326]
[1757945281490,0.005,114580.0,114570.0,1.58186615]
[1757945281685,0.005,114580.0,114570.0,0.75838615]
[1757945281889,0.005,114580.0,114570.0,1.23629904]
[1757945282184,0.62345711,114580.0,114570.0,0.39703]
[1757945282387,0.63738711,114580.0,114570.0,0.3838]
[1757945282991,0.02789,114580.0,114570.0,0.41231904]
[1757945283290,0.005,114580.0,114570.0,0.75788615]
[1757945284789,0.005,114580.0,114570.0,1.10345326]
[1757945285384,0.005,114580.0,114570.0,1.58128615]
[1757945287990,0.005,114580.0,114570.0,1.92685326]
[1757945288194,0.0002,114590.0,114570.0,2.17685326]
[1757945288394,0.0001,114590.0,114580.0,0.75654615]
[1757945288895,0.0001,114590.0,114580.0,1.57990615]
[1757945289394,0.0001,114600.0,114580.0,1.67567064]
[1757945289588,0.01789771,114610.0,114600.0,0.03439]
[1757945289789,0.01779771,114610.0,114600.0,1.57986615]
[1757945289989,0.10915909,114610.0,114600.0,1.56407711]
[1757945290285,0.03977582,114610.0,114600.0,1.56407711]
[1757945290486,0.03977582,114610.0,114600.0,1.57986615]
[1757945292189,0.06266582,114610.0,114600.0,1.23425904]
[1757945292389,0.06266582,114610.0,114600.0,1.57982615]
[1757945292696,0.06466582,114610.0,114600.0,1.57982615]
[1757945293094,0.06766582,114610.0,114600.0,1.57982615]
[1757945294699,0.13724446,114610.0,114600.0,1.57982615]
[1757945295292,0.13724446,114610.0,114600.0,1.23417904]
[1757945295692,0.13724446,114610.0,114600.0,1.57974615]
[1757945295888,0.11435446,114610.0,114600.0,1.57974615]
[1757945296594,0.005,114610.0,114600.0,2.01254326]
[1757945296998,0.005,114610.0,114600.0,2.26254326]
[1757945297600,0.0001,114620.0,114610.0,0.03439]
[1757945297799,0.0001,114630.0,114620.0,0.03439]
[1757945297993,0.02299,114640.0,114630.0,0.03439]
[1757945298193,0.02197062,114640.0,114630.0,0.74075711]
[1757945298393,0.03082968,114640.0,114630.0,0.74075711]